lending/lending_fUSD_20250819
["ID","MTS","AMOUNT","RATE_DAILY","PERIOD"]
[380244740,1755625833468,-201.31,0.00010421,2]
[380244742,1755625833482,-203.73,0.00010421,2]
[380244744,1755625833493,-174.00082362,0.00010421,2]
[380244746,1755625833508,-26.62917638,0.00010421,2]
[380244748,1755625833524,-201.85,0.00010421,2]
[380244750,1755625833535,-77.44082362,0.00010421,2]
[380244752,1755625833547,-124.97917638,0.00010421,2]
[380244754,1755625833559,-203.07,0.00010421,2]
[380244756,1755625833570,-5.92810085,0.00010422,2]
[380244760,1755625833608,-197.99189915,0.00010422,2]
[380244762,1755625833619,-201.77,0.00010422,2]
[380244764,1755625833629,-200.92,0.00010422,2]
[380244766,1755625833639,-203.87,0.00010422,2]
[380244768,1755625833650,-203.07,0.00010422,2]
[380244770,1755625833669,-129.17810085,0.00010422,2]
[380244772,1755625833683,-74.69189915,0.00010422,2]
[380244774,1755625833693,-203.08,0.00010422,2]
[380244776,1755625833704,-202.08,0.00010422,2]
[380244778,1755625833714,-200.89,0.00010422,2]
[380244779,1755625833725,-200.13,0.00010422,2]
[380244780,1755625833735,-202.69,0.00010422,2]
[380244781,1755625833746,-200.74,0.00010422,2]
[380244782,1755625833756,-201.24,0.00010422,2]
[380244783,1755625833766,-200.78,0.00010422,2]
[380244784,1755625833778,-203.22,0.00010422,2]
[380244785,1755625833789,-203.06,0.00010422,2]
[380244786,1755625833799,-150.0,0.00010422,2]
[380244787,1755625833810,-201.55,0.00010422,2]
[380244788,1755625833821,-200.63,0.00010422,2]
[380244789,1755625833832,-201.26,0.00010422,2]
[380244790,1755625833842,-133.44995266,0.00010423,2]
[380244791,1755625833856,-1679.25835834,0.00010423,2]
[380244792,1755625833883,-1370.57328367,0.00010423,2]
[380244793,1755625833944,-912.83267843,0.00010423,2]
[380244794,1755625834039,-549.77001265,0.00010423,2]
[380244795,1755625834052,-953.59383005,0.00010423,2]
[380244798,1755625838162,-6347.2818842,0.00010423,2]
[380244799,1755625838172,-203.87,0.00010423,2]
[380244800,1755625838181,-202.2,0.00010423,2]
[380244801,1755625838192,-201.82,0.00010423,2]
[380244802,1755625838204,-235.0,0.0001043,2]
[380244803,1755625838215,-564.54735925,0.0001078,2]
[380244804,1755625838230,-202.89,0.0001078,2]
[380244805,1755625838242,-203.63,0.0001078,2]
[380244806,1755625838254,-201.06,0.0001078,2]
[380244807,1755625838265,-203.51,0.0001078,2]
[380244808,1755625838276,-200.34,0.0001078,2]
[380244809,1755625838286,-201.87,0.0001078,2]
[380244810,1755625838295,-200.84,0.0001078,2]
[380244811,1755625838306,-203.11,0.0001078,2]
[380244812,1755625838317,-202.47,0.0001078,2]
[380244813,1755625838328,-200.49,0.0001078,2]
[380244814,1755625838337,-203.88,0.0001078,2]
[380244815,1755625838346,-170.6713032,0.000109,2]
[380244816,1755625838355,-150.0,0.000109,2]
[380244818,1755625838364,-150.0,0.000109,2]
[380244820,1755625838374,-150.0,0.000109,2]
[380244822,1755625838383,-500.0,0.000109,2]
[380244824,1755625838392,-150.0,0.000109,2]
[380244826,1755625838401,-300.0,0.000109,2]
[380244828,1755625838411,-150.0,0.000109,2]
[380244830,1755625838420,-500.0,0.000109,2]
[380244832,1755625838431,-901.0,0.000109,2]
[380244835,1755625838441,-551.0,0.000109,2]
[380244837,1755625838450,-170.67130317,0.00010917,2]
[380244839,1755625838460,-170.67130317,0.00010933,2]
[380244841,1755625838469,-170.67130317,0.0001095,2]
[380244843,1755625838478,-2000.0,0.00010959,2]
[380244845,1755625838488,-170.67130317,0.00010966,2]
[380244847,1755625838497,-843.87140665,0.00010973,2]
[380244849,1755625838506,-458.43483364,0.00010973,2]
[380244851,1755625838515,-212.02104404,0.00010973,2]
[380244853,1755625838526,-170.67130317,0.00010983,2]
[380244855,1755625838535,-203.61863769,0.0001099,2]
[380244857,1755625838545,-186.86,0.00010992,2]
[380244859,1755625838554,-240.10378857,0.00010993,2]
[380244861,1755625838564,-200.0,0.00010993,2]
[380244863,1755625838573,-154.33603957,0.00010993,2]
[380244865,1755625838582,-170.67130317,0.00010999,2]
[380244866,1755625838592,-1850.0,0.00011,2]
[380244868,1755625838601,-162279.64603714,0.00011,2]
[380244870,1755625838611,-114611.36,0.00011,2]
[380244872,1755625838622,-1446299.41195173,0.00011,2]
[380244874,1755625838632,-340062.16,0.00011,2]
[380244876,1755625838641,-7410124.27602203,0.00011,2]
[380244884,1755625838707,-490.0,0.00011,2]
[380244886,1755625838719,-1324.04906329,0.00011,2]
[380244890,1755625838748,-3526.66918812,0.00011,2]
[380244895,1755625838781,-293.059999,0.00011,2]
[380245186,1755625841658,-3414.0,0.00011,2]
[380245307,1755625844370,-89250.0,0.00011,2]
[380245308,1755625844380,-146500.0,0.00011,2]
[380245309,1755625844472,-958.95561363,0.00011,2]
[380245313,1755625846148,-478.47206677,0.00011,2]
[380245314,1755625846160,-2940.25960756,0.00011,2]
[380245315,1755625846172,-666.11175096,0.00011,2]
[380245316,1755625846182,-1691.68639968,0.00011,2]
[380245410,1755625882115,691.973583,0.00023,30]
[380245411,1755625928182,829.47,7.945e-05,2]
[380245412,1755625974216,200.0,0.00023,30]
[380245413,1755626130532,232.0,6.6e-05,2]
[380245414,1755626130886,227.0,7.78e-05,2]
[380245415,1755626131287,222.0,8.97e-05,2]
[380245421,1755626402763,335.41,0.00010986,14]
[380245422,1755626459097,9978.59061437,0.00023,30]
[380245423,1755626509467,2588.6,0.00021945,30]
[380245424,1755626664009,218.0,5.6e-05,2]
[380245425,1755626664364,214.0,6.78e-05,2]
[380245426,1755626664708,209.0,7.97e-05,2]
[380245427,1755626665101,205.0,9.15e-05,2]
[380245586,1755626895495,200.0,0.00023,30]
[380245587,1755626938358,151.0,0.00023,30]
[380245588,1755627011894,-310.01642807,0.00023147,30]
[380245589,1755627011918,-1000.0,0.00023288,120]
[380245590,1755627011944,-150.0,0.00023535,30]
[380245591,1755627011966,-1000.0,0.00023562,120]
[380245592,1755627011989,-1000.0,0.00023836,120]
[380245593,1755627012024,-1369.0,0.00024,120]
[380245594,1755627012062,-650.0,0.00024,120]
[380245595,1755627012085,-150.0,0.00024083,30]
[380245596,1755627012109,-1000.0,0.0002411,120]
[380245597,1755627012132,-310.0008214,0.00024304,30]
[380245598,1755627012157,-1000.0,0.00024384,120]
[380245599,1755627012181,-150.0,0.00024631,30]
[380245600,1755627012207,-1000.0,0.00024658,120]
[380245601,1755627012231,-517.524807,0.00024699,120]
[380245602,1755627012255,-216.0,0.0002493,30]
[380245603,1755627012280,-732.0,0.00024932,30]
[380245604,1755627012305,-1000.0,0.00024932,120]
[380245605,1755627012330,-1000.0,0.00024932,120]
[380245606,1755627012359,-334.92953392,0.00025,60]
[380245607,1755627012385,-211.53573444,0.00025,120]
[380245608,1755627012410,-800.0,0.00025,120]
[380245609,1755627012436,-3500.0,0.00025,30]
[380245610,1755627012459,-1268.266716,0.00025,120]
[380245611,1755627012482,-150.0,0.00025,30]
[380245612,1755627012771,-337.3253788,0.00025,60]
[380245613,1755627012802,-500.0,0.000251,30]
[380245614,1755627012834,-501.20297787,0.000251,30]
[380245615,1755627012864,-500.0,0.000251,30]
[380245616,1755627012888,-500.0,0.000251,30]
[380245617,1755627012911,-961.38609621,0.000251,30]
[380245618,1755627012934,-500.0,0.000251,30]
[380245619,1755627012957,-500.0,0.000251,30]
[380245620,1755627012981,-500.0,0.000251,30]
[380245621,1755627013004,-500.0,0.000251,30]
[380245622,1755627013028,-500.0,0.000251,30]
[380245623,1755627013051,-500.0,0.000251,30]
[380245624,1755627013074,-500.0,0.000251,30]
[380245625,1755627013097,-500.0,0.000251,30]
[380245626,1755627013121,-500.0,0.000251,30]
[380245627,1755627013145,-500.0,0.000251,30]
[380245628,1755627013169,-500.0,0.000251,30]
[380245629,1755627013191,-500.0,0.000251,30]
[380245630,1755627013214,-500.0,0.000251,30]
[380245631,1755627013238,-621.60511324,0.000251,30]
[380245632,1755627013262,-1400.0,0.000251,30]
[380245633,1755627013286,-500.0,0.000251,30]
[380245634,1755627013309,-1400.0,0.000251,30]
[380245635,1755627013334,-500.0,0.000251,30]
[380245636,1755627013358,-500.0,0.000251,30]
[380245637,1755627013381,-1400.0,0.000251,30]
[380245638,1755627013408,-1400.0,0.000251,30]
[380245639,1755627013439,-1400.0,0.000251,30]
[380245640,1755627013481,-1400.0,0.000251,30]
[380245641,1755627013524,-1400.0,0.000251,30]
[380245642,1755627013555,-500.0,0.000251,30]
[380245643,1755627013580,-500.0,0.000251,30]
[380245644,1755627013639,-1400.0,0.000251,30]
[380245645,1755627013677,-500.0,0.000251,30]
[380245646,1755627013714,-1400.0,0.000251,30]
[380245647,1755627013760,-500.0,0.000251,30]
[380245648,1755627013785,-1400.0,0.000251,30]
[380245649,1755627013808,-985.12714735,0.000251,30]
[380245650,1755627013832,-1400.0,0.000251,30]
[380245651,1755627013855,-1000.0,0.000251,30]
[380245652,1755627013878,-1400.0,0.000251,30]
[380245653,1755627013902,-1000.0,0.000251,30]
[380245654,1755627013926,-1400.0,0.000251,30]
[380245655,1755627013949,-1000.0,0.000251,30]
[380245656,1755627013973,-2434.69034784,0.000251,30]
[380245657,1755627013997,-1000.0,0.000251,30]
[380245658,1755627014023,-1000.0,0.000251,30]
[380245659,1755627014047,-1000.0,0.000251,30]
[380245660,1755627014072,-1000.0,0.000251,30]
[380245661,1755627014097,-1000.0,0.000251,30]
[380245662,1755627014120,-500.0,0.000251,30]
[380245663,1755627014144,-1000.0,0.000251,30]
[380245664,1755627014168,-500.0,0.000251,30]
[380245665,1755627014192,-1000.0,0.000251,30]
[380245666,1755627014218,-500.0,0.000251,30]
[380245667,1755627014242,-500.0,0.000251,30]
[380245668,1755627014267,-1000.0,0.000251,30]
[380245669,1755627014291,-500.0,0.000251,30]
[380245670,1755627014314,-500.0,0.000251,30]
[380245671,1755627014339,-1400.0,0.000251,30]
[380245672,1755627014364,-1000.0,0.000251,30]
[380245673,1755627014388,-500.0,0.000251,30]
[380245674,1755627014413,-500.0,0.000251,30]
[380245675,1755627014439,-1400.0,0.000251,30]
[380245676,1755627014463,-1962.49216341,0.000251,30]
[380245677,1755627014486,-500.0,0.000251,30]
[380245678,1755627014510,-500.0,0.000251,30]
[380245679,1755627014537,-500.0,0.000251,30]
[380245680,1755627014561,-500.0,0.000251,30]
[380245681,1755627014587,-1400.0,0.000251,30]
[380245682,1755627014613,-500.0,0.000251,30]
[380245683,1755627014637,-500.0,0.000251,30]
[380245684,1755627014662,-900.0,0.000251,30]
[380245685,1755627014688,-500.0,0.000251,30]
[380245686,1755627014712,-500.0,0.000251,30]
[380245687,1755627014735,-500.0,0.000251,30]
[380245688,1755627014759,-1400.0,0.000251,30]
[380245689,1755627014782,-500.0,0.000251,30]
[380245690,1755627014807,-500.0,0.000251,30]
[380245691,1755627014831,-500.0,0.000251,30]
[380245692,1755627014857,-900.0,0.000251,30]
[380245693,1755627014882,-500.0,0.000251,30]
[380245694,1755627014907,-1400.0,0.000251,30]
[380245695,1755627014930,-500.0,0.000251,30]
[380245696,1755627014954,-500.0,0.000251,30]
[380245697,1755627015393,-900.0,0.000251,30]
[380245698,1755627015419,-590.4602419,0.000251,30]
[380245699,1755627015444,-500.0,0.000251,30]
[380245700,1755627015468,-1400.0,0.000251,30]
[380245701,1755627015493,-500.0,0.000251,30]
[380245702,1755627015518,-500.0,0.000251,30]
[380245703,1755627015552,-900.0,0.000251,30]
[380245704,1755627015577,-500.0,0.000251,30]
[380245705,1755627015601,-1400.0,0.000251,30]
[380245706,1755627015627,-500.0,0.000251,30]
[380245707,1755627015651,-714.89201082,0.000251,30]
[380245708,1755627015676,-900.0,0.000251,30]
[380245709,1755627015700,-1400.0,0.000251,30]
[380245710,1755627015724,-900.0,0.000251,30]
[380245711,1755627015748,-1400.0,0.000251,30]
[380245712,1755627015772,-900.0,0.000251,30]
[380245713,1755627015795,-1400.0,0.000251,30]
[380245714,1755627015819,-900.0,0.000251,30]
[380245715,1755627015844,-1400.0,0.000251,30]
[380245716,1755627015873,-1100.0,0.000251,30]
[380245717,1755627015898,-500.0,0.000251,30]
[380245718,1755627015923,-900.0,0.000251,30]
[380245719,1755627015948,-1400.0,0.000251,30]
[380245720,1755627015973,-1100.0,0.000251,30]
[380245721,1755627015998,-500.0,0.000251,30]
[380245722,1755627016025,-900.0,0.000251,30]
[380245723,1755627016050,-1100.0,0.000251,30]
[380245724,1755627016075,-500.0,0.000251,30]
[380245725,1755627016100,-900.0,0.000251,30]
[380245726,1755627016126,-1100.0,0.000251,30]
[380245727,1755627016152,-900.0,0.000251,30]
[380245728,1755627016178,-500.0,0.000251,30]
[380245729,1755627016203,-1100.0,0.000251,30]
[380245730,1755627016227,-1500.0,0.000251,30]
[380245731,1755627016253,-500.0,0.000251,30]
[380245732,1755627016278,-1100.0,0.000251,30]
[380245733,1755627016304,-732.71575476,0.000251,30]
[380245734,1755627016331,-1100.0,0.000251,30]
[380245735,1755627016358,-1400.0,0.000251,30]
[380245736,1755627016388,-1100.0,0.000251,30]
[380245737,1755627016415,-1914.14893445,0.000251,30]
[380245738,1755627016442,-1100.0,0.000251,30]
[380245739,1755627016467,-1100.0,0.000251,30]
[380245740,1755627016492,-1100.0,0.000251,30]
[380245741,1755627016516,-1100.0,0.000251,30]
[380245742,1755627016545,-1706.41493558,0.000251,30]
[380245743,1755627016570,-500.0,0.000251,30]
[380245744,1755627016596,-597.97213434,0.000251,30]
[380245745,1755627016621,-500.0,0.000251,30]
[380245746,1755627016646,-500.0,0.000251,30]
[380245747,1755627016673,-500.0,0.000251,30]
[380245748,1755627016700,-678.81830352,0.000251,30]
[380245749,1755627016726,-516.0180486,0.000251,30]
[380245750,1755627016752,-500.0,0.000251,30]
[380245751,1755627016777,-500.0,0.000251,30]
[380245752,1755627016802,-500.0,0.000251,30]
[380245753,1755627016829,-500.0,0.000251,30]
[380245754,1755627016853,-500.0,0.000251,30]
[380245755,1755627016877,-500.0,0.000251,30]
[380245756,1755627016901,-500.0,0.000251,30]
[380245757,1755627016928,-500.0,0.000251,30]
[380245758,1755627016954,-500.0,0.000251,30]
[380245759,1755627016978,-500.0,0.000251,30]
[380245760,1755627017003,-500.0,0.000251,30]
[380245761,1755627017028,-690.07495916,0.000251,30]
[380245762,1755627017052,-500.0,0.000251,30]
[380245763,1755627017077,-150.0,0.00025179,30]
[380245764,1755627017100,-1000.0,0.00025205,120]
[380245765,1755627017126,-1000.0,0.00025205,120]
[380245766,1755627017152,-1000.0,0.00025479,120]
[380245767,1755627017179,-1000.0,0.00025479,120]
[380245768,1755627017205,-2000.0,0.00025497,120]
[380245769,1755627017232,-150.0,0.00025727,30]
[380245770,1755627017258,-1000.0,0.00025753,120]
[380245771,1755627017285,-1000.0,0.00025753,120]
[380245772,1755627017314,-750.0,0.00026,120]
[380245773,1755627017343,-500.0,0.00026,30]
[380245774,1755627017615,-500.83733438,0.00026,30]
[380245775,1755627017641,-500.0,0.00026,30]
[380245776,1755627017664,-218.11635776,0.00026,30]
[380245777,1755627017689,-500.0,0.00026,30]
[380245778,1755627017715,-500.0,0.00026,30]
[380245779,1755627017741,-539.98320965,0.00026,30]
[380245780,1755627017764,-500.0,0.00026,30]
[380245781,1755627017789,-500.0,0.00026,30]
[380245782,1755627017815,-500.0,0.00026,30]
[380245783,1755627017839,-500.0,0.00026,30]
[380245784,1755627017865,-500.0,0.00026,30]
[380245785,1755627017888,-500.0,0.00026,30]
[380245786,1755627017912,-500.0,0.00026,30]
[380245787,1755627017937,-500.0,0.00026,30]
[380245788,1755627017967,-500.0,0.00026,30]
[380245789,1755627017992,-500.0,0.00026,30]
[380245790,1755627018018,-500.0,0.00026,30]
[380245791,1755627018045,-500.0,0.00026,30]
[380245792,1755627018071,-500.0,0.00026,30]
[380245793,1755627018098,-500.0,0.00026,30]
[380245794,1755627018124,-1400.0,0.00026,30]
[380245795,1755627018151,-500.0,0.00026,30]
[380245796,1755627018177,-1400.0,0.00026,30]
[380245797,1755627018204,-1400.0,0.00026,30]
[380245798,1755627018229,-500.0,0.00026,30]
[380245799,1755627018255,-1400.0,0.00026,30]
[380245800,1755627018280,-1400.0,0.00026,30]
[380245801,1755627018304,-1400.0,0.00026,30]
[380245802,1755627018328,-311.36385741,0.00026,30]
[380245803,1755627018353,-1400.0,0.00026,30]
[380245804,1755627018377,-810.0,0.00026,30]
[380245805,1755627018402,-1400.0,0.00026,30]
[380245806,1755627018426,-1400.0,0.00026,30]
[380245807,1755627018452,-1400.0,0.00026,30]
[380245808,1755627018484,-1400.0,0.00026,30]
[380245809,1755627018511,-1400.0,0.00026,30]
[380245810,1755627018538,-1400.0,0.00026,30]
[380245811,1755627018563,-1400.0,0.00026,30]
[380245812,1755627018590,-500.0,0.00026,30]
[380245813,1755627018616,-1400.0,0.00026,30]
[380245814,1755627018642,-500.0,0.00026,30]
[380245815,1755627018668,-1000.0,0.00026,30]
[380245816,1755627018695,-500.0,0.00026,30]
[380245817,1755627018722,-1000.0,0.00026,30]
[380245818,1755627018749,-500.0,0.00026,30]
[380245819,1755627018775,-500.0,0.00026,30]
[380245820,1755627018800,-1000.0,0.00026,30]
[380245821,1755627018825,-500.0,0.00026,30]
[380245822,1755627018852,-1000.0,0.00026,30]
[380245823,1755627018878,-427.85149818,0.00026,30]
[380245824,1755627018903,-500.0,0.00026,30]
[380245825,1755627018932,-500.0,0.00026,30]
[380245826,1755627018957,-1000.0,0.00026,30]
[380245827,1755627018985,-1000.0,0.00026,30]
[380245828,1755627019010,-1000.0,0.00026,30]
[380245829,1755627019036,-500.0,0.00026,30]
[380245830,1755627019063,-1000.0,0.00026,30]
[380245831,1755627019091,-500.0,0.00026,30]
[380245832,1755627019119,-1000.0,0.00026,30]
[380245833,1755627019147,-500.0,0.00026,30]
[380245834,1755627019175,-500.0,0.00026,30]
[380245835,1755627019204,-1000.0,0.00026,30]
[380245836,1755627019233,-1400.0,0.00026,30]
[380245837,1755627019259,-191.97766898,0.00026,30]
[380245838,1755627019286,-1000.0,0.00026,30]
[380245839,1755627019310,-1400.0,0.00026,30]
[380245840,1755627019335,-401.725679,0.00026,30]
[380245841,1755627019360,-1000.0,0.00026,30]
[380245842,1755627019384,-1400.0,0.00026,30]
[380245843,1755627019409,-1000.0,0.00026,30]
[380245844,1755627019436,-1400.0,0.00026,30]
[380245845,1755627019460,-500.0,0.00026,30]
[380245846,1755627019485,-1400.0,0.00026,30]
[380245847,1755627019511,-1000.0,0.00026,30]
[380245848,1755627019537,-500.0,0.00026,30]
[380245849,1755627019562,-1400.0,0.00026,30]
[380245850,1755627019589,-500.0,0.00026,30]
[380245851,1755627019617,-1400.0,0.00026,30]
[380245852,1755627019641,-500.0,0.00026,30]
[380245853,1755627019665,-1400.0,0.00026,30]
[380245854,1755627019691,-900.0,0.00026,30]
[380245855,1755627019717,-500.0,0.00026,30]
[380245856,1755627019742,-500.0,0.00026,30]
[380245857,1755627019768,-1400.0,0.00026,30]
[380245858,1755627019794,-992.12370438,0.00026,30]
[380245859,1755627019820,-900.0,0.00026,30]
[380245860,1755627019846,-500.0,0.00026,30]
[380245861,1755627019873,-500.0,0.00026,30]
[380245862,1755627019899,-1400.0,0.00026,30]
[380245863,1755627019923,-500.0,0.00026,30]
[380245864,1755627019949,-900.0,0.00026,30]
[380245865,1755627019974,-516.75211114,0.00026,30]
[380245866,1755627019998,-500.0,0.00026,30]
[380245867,1755627020023,-1400.0,0.00026,30]
[380245868,1755627020048,-500.0,0.00026,30]
[380245869,1755627020072,-500.0,0.00026,30]
[380245870,1755627020096,-166.20344084,0.00026,30]
[380245871,1755627020120,-900.0,0.00026,30]
[380245872,1755627020145,-500.0,0.00026,30]
[380245873,1755627020171,-500.0,0.00026,30]
[380245874,1755627020197,-500.0,0.00026,30]
[380245875,1755627020221,-500.0,0.00026,30]
[380245876,1755627020246,-900.0,0.00026,30]
[380245877,1755627020272,-1400.0,0.00026,30]
[380245878,1755627020296,-500.0,0.00026,30]
[380245879,1755627020319,-997.72949296,0.00026,30]
[380245880,1755627020344,-195.93747568,0.00026,30]
[380245881,1755627020367,-1100.0,0.00026,30]
[380245882,1755627020392,-500.0,0.00026,30]
[380245883,1755627020417,-900.0,0.00026,30]
[380245884,1755627020443,-1400.0,0.00026,30]
[380245885,1755627020468,-982.02077444,0.00026,30]
[380245886,1755627020492,-500.0,0.00026,30]
[380245887,1755627020517,-500.0,0.00026,30]
[380245888,1755627020546,-500.0,0.00026,30]
[380245889,1755627020570,-500.0,0.00026,30]
[380245890,1755627020840,-500.0,0.00026,30]
[380245891,1755627020865,-900.0,0.00026,30]
[380245892,1755627020889,-500.0,0.00026,30]
[380245893,1755627020912,-500.0,0.00026,30]
[380245894,1755627020936,-500.0,0.00026,30]
[380245895,1755627020959,-500.0,0.00026,30]
[380245896,1755627020983,-900.0,0.00026,30]
[380245897,1755627021009,-500.0,0.00026,30]
[380245898,1755627021033,-500.0,0.00026,30]
[380245899,1755627021057,-1100.0,0.00026,30]
[380245900,1755627021080,-1400.0,0.00026,30]
[380245901,1755627021105,-500.0,0.00026,30]
[380245902,1755627021130,-500.0,0.00026,30]
[380245903,1755627021155,-900.0,0.00026,30]
[380245904,1755627021179,-500.0,0.00026,30]
[380245905,1755627021203,-1100.0,0.00026,30]
[380245906,1755627021228,-500.0,0.00026,30]
[380245907,1755627021255,-500.0,0.00026,30]
[380245908,1755627021280,-900.0,0.00026,30]
[380245909,1755627021305,-500.0,0.00026,30]
[380245910,1755627021329,-1100.0,0.00026,30]
[380245911,1755627021354,-500.0,0.00026,30]
[380245912,1755627021380,-900.0,0.00026,30]
[380245913,1755627021405,-500.0,0.00026,30]
[380245914,1755627021429,-1100.0,0.00026,30]
[380245915,1755627021456,-500.0,0.00026,30]
[380245916,1755627021481,-900.0,0.00026,30]
[380245917,1755627021507,-500.0,0.00026,30]
[380245918,1755627021534,-1100.0,0.00026,30]
[380245919,1755627021558,-900.0,0.00026,30]
[380245920,1755627021584,-1100.0,0.00026,30]
[380245921,1755627021609,-1100.0,0.00026,30]
[380245922,1755627021635,-1100.0,0.00026,30]
[380245923,1755627021660,-1100.0,0.00026,30]
[380245924,1755627021685,-1100.0,0.00026,30]
[380245925,1755627021710,-1100.0,0.00026,30]
[380245926,1755627021734,-1100.0,0.00026,30]
[380245927,1755627021758,-1100.0,0.00026,30]
[380245928,1755627021782,-500.0,0.00026,30]
[380245929,1755627021807,-500.7,0.00026,30]
[380245930,1755627021836,-500.0,0.00026,30]
[380245931,1755627021863,-500.0,0.00026,30]
[380245932,1755627021890,-500.0,0.00026,30]
[380245933,1755627021914,-500.0,0.00026,30]
[380245934,1755627021941,-572.28509451,0.00026,30]
[380245935,1755627021964,-215.9781252,0.00026,30]
[380245936,1755627021988,-500.0,0.00026,30]
[380245937,1755627022012,-807.34137724,0.00026,30]
[380245938,1755627022036,-500.0,0.00026,30]
[380245939,1755627022061,-500.0,0.00026,30]
[380245940,1755627022086,-500.0,0.00026,30]
[380245941,1755627022111,-500.0,0.00026,30]
[380245942,1755627022136,-500.0,0.00026,30]
[380245943,1755627022162,-719.60611362,0.00026,30]
[380245944,1755627022186,-500.0,0.00026,30]
[380245945,1755627022211,-500.0,0.00026,30]
[380245946,1755627022235,-500.0,0.00026,30]
[380245947,1755627022261,-500.0,0.00026,30]
[380245948,1755627022286,-500.0,0.00026,30]
[380245949,1755627022310,-500.0,0.00026,30]
[380245950,1755627022334,-500.0,0.00026,30]
[380245951,1755627022357,-973.3764393,0.00026,30]
[380245952,1755627022382,-500.0,0.00026,30]
[380245953,1755627022407,-500.0,0.00026,30]
[380245954,1755627022433,-500.0,0.00026,30]
[380245955,1755627022457,-500.0,0.00026,30]
[380245956,1755627022481,-500.0,0.00026,30]
[380245957,1755627022505,-500.7,0.00026,30]
[380245958,1755627022529,-500.0,0.00026,30]
[380245959,1755627022553,-500.0,0.00026,30]
[380245960,1755627022578,-839.56183132,0.00026,30]
[380245961,1755627022603,-1000.0,0.00026027,120]
[380245962,1755627022628,-1000.0,0.00026027,120]
[380245963,1755627022653,-166.0,0.00026027,120]
[380245964,1755627022682,-150.0,0.00026275,30]
[380245965,1755627022706,-1000.0,0.00026301,120]
[380245966,1755627022733,-1000.0,0.00026301,120]
[380245967,1755627022767,-1000.0,0.00026575,120]
[380245968,1755627022802,-1000.0,0.00026575,120]
[380245969,1755627022827,-2000.0,0.00026722,120]
[380245970,1755627022852,-150.0,0.00026823,30]
[380245971,1755627022876,-1000.0,0.00026849,120]
[380245972,1755627022903,-1000.0,0.00026849,120]
[380245973,1755627022930,-150.5,0.0002697,120]
[380245974,1755627022955,-1880.0,0.0002697,120]
[380245975,1755627022980,-1880.0,0.0002697,120]